bitfinex-derivatives/quotes_BNBF0:USTF0_20250603
["timestamp","ask_amount","ask_price","bid_price","bid_amount"]
[1748984965119,1.01714611,661.44,661.28,0.30244374]
[1748984965321,1.01714611,661.43,661.28,0.30244374]
[1748984965521,1.13049513,661.76,661.28,0.30244374]
[1748984965522,1.01714611,661.42,661.28,0.30244374]
[1748984965722,1.01714611,661.41,661.28,0.30244374]
[1748984965920,1.01714611,661.4,661.28,0.30244374]
[1748984966122,1.13056176,661.76,661.28,0.30244374]
[1748984966320,1.50910513,661.96,661.28,0.30244374]
[1748984966522,1.13057303,661.76,661.28,0.30244374]
[1748984966822,1.02235353,661.75,661.28,0.30244374]
[1748984967017,1.02235353,661.74,661.28,0.30244374]
[1748984967223,1.02235353,661.73,661.28,0.30244374]
[1748984967419,1.02235353,661.72,661.28,0.30244374]
[1748984967622,1.02235353,661.71,661.28,0.30244374]
[1748984967823,1.02235353,661.7,661.28,0.30244374]
[1748984968121,1.02235353,661.69,661.28,0.30244374]
[1748984968323,1.02235353,661.68,661.28,0.30244374]
[1748984968520,1.02235353,661.67,661.28,0.30244374]
[1748984968825,1.02235353,661.66,661.28,0.30244374]
[1748984969026,1.02235353,661.65,661.28,0.30244374]
[1748984969321,1.02235353,661.64,661.28,0.30244374]
[1748984969524,1.02235353,661.63,661.28,0.30244374]
[1748984969824,1.02235353,661.62,661.28,0.30244374]
[1748984970024,1.50910513,661.96,661.28,0.30244374]
[1748984970224,1.13067823,661.75,661.28,0.30244374]
[1748984970421,1.02145368,661.74,661.28,0.30244374]
[1748984970625,1.02145368,661.73,661.28,0.30244374]
[1748984970820,1.02145368,661.72,661.28,0.30244374]
[1748984971019,1.02145368,661.71,661.28,0.30244374]
[1748984971224,1.02145368,661.7,661.28,0.30244374]
[1748984971424,1.02145368,661.69,661.28,0.30244374]
[1748984971737,1.02145368,661.68,661.28,0.30244374]
[1748984971991,1.02145368,661.67,661.28,0.30244374]
[1748984972238,1.02145368,661.66,661.28,0.30244374]
[1748984972241,1.02145368,661.65,661.28,0.30244374]
[1748984972511,1.02145368,661.64,661.28,0.30244374]
[1748984972646,1.02145368,661.63,661.28,0.30244374]
[1748984972927,1.02145368,661.62,661.28,0.30244374]
[1748984973138,1.02145368,661.61,661.28,0.30244374]
[1748984973349,1.02145368,661.6,661.28,0.30244374]
[1748984973638,3.75129473,662.92,661.28,0.30244374]
[1748984973639,1.02145368,661.59,661.28,0.30244374]
[1748984973732,1.02145368,661.58,661.28,0.30244374]
[1748984973937,1.02145368,661.57,661.28,0.30244374]
[1748984974157,1.02145368,661.56,661.28,0.30244374]
[1748984974329,1.02150659,661.55,661.28,0.30244374]
[1748984974529,1.02150659,661.54,661.28,0.30244374]
[1748984974767,1.02150659,661.53,661.28,0.30244374]
[1748984974932,1.02150659,661.52,661.28,0.30244374]
[1748984975233,1.02150659,661.51,661.28,0.30244374]
[1748984975426,1.02150659,661.5,661.28,0.30244374]
[1748984975639,1.02150659,661.49,661.28,0.30244374]
[1748984975827,1.02150659,661.48,661.28,0.30244374]
[1748984976025,1.02150659,661.47,661.28,0.30244374]
[1748984976236,1.02150659,661.46,661.28,0.30244374]
[1748984976427,1.02150659,661.45,661.28,0.30244374]
[1748984976627,1.02150659,661.44,661.28,0.30244374]
[1748984976828,1.02150659,661.43,661.28,0.30244374]
[1748984977029,1.02150659,661.42,661.28,0.30244374]
[1748984977225,1.02150659,661.41,661.28,0.30244374]
[1748984977428,1.02150659,661.4,661.28,0.30244374]
[1748984977630,1.02150659,661.39,661.28,0.30244374]
[1748984977854,1.0226545,661.38,661.28,0.30244374]
[1748984978025,1.0226545,661.37,661.28,0.30244374]
[1748984978226,1.0226545,661.36,661.28,0.30244374]
[1748984978426,1.0226545,661.35,661.28,0.30244374]
[1748984978626,1.13004379,661.58,661.28,0.30244374]
[1748984978627,1.0226545,661.34,661.28,0.30244374]
[1748984978828,1.0226545,661.33,661.28,0.30244374]
[1748984979130,1.0226545,661.32,661.28,0.30244374]
[1748984979432,1.0226545,661.31,661.28,0.30244374]
[1748984979731,1.13004379,661.55,661.28,0.30244374]
[1748984980030,1.02188269,661.54,661.28,0.30244374]
[1748984980230,1.02188269,661.53,661.28,0.30244374]
[1748984980430,1.02188269,661.52,661.28,0.30244374]
[1748984980626,1.02188269,661.51,661.28,0.30244374]
[1748984980828,1.02188269,661.5,661.28,0.30244374]
[1748984981030,1.13004379,661.54,661.28,0.30244374]
[1748984981031,1.02188269,661.49,661.28,0.30244374]
[1748984981226,1.02188269,661.48,661.28,0.30244374]
[1748984981430,1.02188269,661.47,661.28,0.30244374]
[1748984981737,1.02188269,661.46,661.28,0.30244374]
[1748984981934,1.02188269,661.45,661.28,0.30244374]
[1748984982132,1.02188269,661.44,661.28,0.30244374]
[1748984982332,1.02188269,661.43,661.28,0.30244374]
[1748984982536,1.02188269,661.42,661.28,0.30244374]
[1748984982730,1.02188269,661.41,661.28,0.30244374]
[1748984982931,1.02188269,661.4,661.28,0.30244374]
[1748984983130,1.02188269,661.39,661.28,0.30244374]
[1748984983328,1.02188269,661.38,661.28,0.30244374]
[1748984983531,1.02188269,661.37,661.28,0.30244374]
[1748984983832,1.02188269,661.36,661.28,0.30244374]
[1748984984033,1.02188269,661.35,661.28,0.30244374]
[1748984984334,1.02188269,661.34,661.28,0.30244374]
[1748984984537,1.02188269,661.33,661.28,0.30244374]
[1748984984838,1.02188269,661.32,661.28,0.30244374]
[1748984985033,1.13004379,661.54,661.28,0.30244374]
[1748984985235,1.02154219,661.53,661.28,0.30244374]
[1748984985599,1.50910513,661.66,661.28,0.30244374]
[1748984985834,1.12943932,661.54,661.28,0.30244374]
[1748984986178,2.15096393,661.53,661.28,0.30244374]
[1748984986333,1.02152461,661.52,661.28,0.30244374]
[1748984986534,1.02152461,661.51,661.28,0.30244374]
[1748984986734,1.12943932,661.53,661.28,0.30244374]
[1748984986735,1.02152461,661.5,661.28,0.30244374]
[1748984986931,1.02152461,661.49,661.28,0.30244374]
[1748984987126,1.02152461,661.48,661.28,0.30244374]
[1748984987333,1.02152461,661.47,661.28,0.30244374]
[1748984987536,1.02152461,661.46,661.28,0.30244374]
[1748984987728,1.02152461,661.45,661.28,0.30244374]
[1748984987928,1.12943932,661.54,661.28,0.30244374]
[1748984987929,1.02152461,661.44,661.28,0.30244374]
[1748984988236,1.02152461,661.43,661.28,0.30244374]
[1748984988534,1.02152461,661.42,661.28,0.30244374]
[1748984988730,1.02152461,661.41,661.28,0.30244374]
[1748984988934,1.02152461,661.4,661.28,0.30244374]
[1748984989129,1.12943932,661.53,661.28,0.30244374]
[1748984989130,1.02152461,661.39,661.28,0.30244374]
[1748984989336,1.02152461,661.38,661.28,0.30244374]
[1748984989529,1.02156162,661.37,661.28,0.30244374]
[1748984989735,1.02156162,661.36,661.28,0.30244374]
[1748984990036,1.12941638,661.53,661.28,0.30244374]
[1748984990037,1.02156162,661.35,661.28,0.30244374]
[1748984990234,1.02156162,661.34,661.28,0.30244374]
[1748984990437,1.12941638,661.53,661.28,0.30244374]
[1748984990634,1.02147642,661.52,661.28,0.30244374]
[1748984990838,1.02147642,661.51,661.28,0.30244374]
[1748984991035,1.02147642,661.5,661.28,0.30244374]
[1748984991236,1.02147642,661.49,661.28,0.30244374]
[1748984991436,1.02147642,661.48,661.28,0.30244374]
[1748984991632,1.02147642,661.47,661.28,0.30244374]
[1748984991836,1.02147642,661.46,661.28,0.30244374]
[1748984992036,1.02147642,661.45,661.28,0.30244374]
[1748984992341,1.02147642,661.44,661.28,0.30244374]
[1748984992536,1.02147642,661.43,661.28,0.30244374]
[1748984992735,1.02147642,661.42,661.28,0.30244374]
[1748984992955,1.02147642,661.41,661.28,0.30244374]
[1748984993138,1.02147642,661.4,661.28,0.30244374]
[1748984993336,1.12941638,661.57,661.28,0.30244374]
[1748984993337,1.02147642,661.39,661.28,0.30244374]
[1748984993544,1.50910513,661.7,661.28,0.30244374]
[1748984993838,1.12915865,661.57,661.28,0.30244374]
[1748984994036,1.02133195,661.56,661.28,0.30244374]
[1748984994337,1.02133195,661.55,661.28,0.30244374]
[1748984994538,1.02133195,661.54,661.28,0.30244374]
[1748984994734,1.02133195,661.53,661.28,0.30244374]
[1748984994933,1.02133195,661.52,661.28,0.30244374]
[1748984995239,1.02133195,661.51,661.28,0.30244374]
[1748984995437,1.02133195,661.5,661.28,0.30244374]
[1748984995645,1.02133195,661.49,661.28,0.30244374]
[1748984995832,1.02133195,661.48,661.28,0.30244374]
[1748984996053,1.02133195,661.47,661.28,0.30244374]
[1748984996235,1.02133195,661.46,661.28,0.30244374]
[1748984996435,1.02133195,661.45,661.28,0.30244374]
[1748984996637,1.02133195,661.44,661.28,0.30244374]
[1748984996938,1.02133195,661.43,661.28,0.30244374]
[1748984997133,1.02133195,661.42,661.28,0.30244374]
[1748984997338,1.02133195,661.41,661.28,0.30244374]
[1748984997638,1.02001394,661.4,661.28,0.30244374]
[1748984997839,1.02001394,661.39,661.28,0.30244374]
[1748984998034,1.02001394,661.38,661.28,0.30244374]
[1748984998234,1.02001394,661.37,661.28,0.30244374]
[1748984998438,1.02001394,661.36,661.28,0.30244374]
[1748984998634,1.02001394,661.35,661.28,0.30244374]
[1748984998937,1.02001394,661.34,661.28,0.30244374]
[1748984999155,1.02001394,661.33,661.28,0.30244374]
[1748984999339,1.12886435,661.6,661.28,0.30244374]
[1748984999539,1.01993917,661.59,661.28,0.30244374]
[1748984999735,1.01993917,661.58,661.28,0.30244374]
[1748984999944,1.01993917,661.57,661.28,0.30244374]
[1748985000140,1.01993917,661.56,661.28,0.30244374]
[1748985000440,1.01993917,661.55,661.28,0.30244374]
[1748985000675,1.01993917,661.54,661.28,0.30244374]
[1748985000938,1.50910513,661.75,661.28,0.30244374]
[1748985001137,1.12860336,661.6,661.28,0.30244374]
[1748985001335,1.01959767,661.59,661.28,0.30244374]
[1748985001540,1.01959767,661.58,661.28,0.30244374]
[1748985001740,1.01959767,661.57,661.28,0.30244374]
[1748985002040,3.75129473,662.51,661.28,0.30244374]
[1748985002041,1.01959767,661.56,661.28,0.30244374]
[1748985002242,1.01959767,661.55,661.28,0.30244374]
[1748985002438,1.01959767,661.54,661.28,0.30244374]
[1748985002642,1.01959767,661.53,661.28,0.30244374]
[1748985002971,1.01959767,661.52,661.28,0.30244374]
[1748985003130,1.01959767,661.51,661.28,0.30244374]
[1748985003246,1.01959767,661.5,661.28,0.30244374]
[1748985003438,1.01959767,661.49,661.28,0.30244374]
[1748985003644,1.01959767,661.48,661.28,0.30244374]
[1748985003841,1.01959767,661.47,661.28,0.30244374]
[1748985004048,1.01912442,661.46,661.28,0.30244374]
[1748985004245,1.01912442,661.45,661.28,0.30244374]
[1748985004443,1.01912442,661.44,661.28,0.30244374]
[1748985004642,1.01912442,661.43,661.28,0.30244374]
[1748985004839,1.01912442,661.42,661.28,0.30244374]
[1748985005143,1.01912442,661.41,661.28,0.30244374]
[1748985005344,1.01912442,661.4,661.28,0.30244374]
[1748985005644,1.01912442,661.39,661.28,0.30244374]
[1748985005849,1.01912442,661.38,661.28,0.30244374]
[1748985006043,1.01912442,661.37,661.28,0.30244374]
[1748985006244,1.01912442,661.36,661.28,0.30244374]
[1748985006452,1.01912442,661.35,661.28,0.30244374]
[1748985006640,1.01912442,661.34,661.28,0.30244374]
[1748985006853,1.01912442,661.33,661.28,0.30244374]
[1748985007039,1.01912442,661.32,661.28,0.30244374]
[1748985007239,1.01912442,661.31,661.28,0.30244374]
[1748985007477,1.01912442,661.3,661.28,0.30244374]
[1748985007642,1.01912442,661.29,661.28,0.30244374]
[1748985008146,1.01829809,661.29,661.28,0.30244374]
[1748985012048,1.01807675,661.29,661.28,0.30244374]
[1748985015948,1.50910513,661.58,661.28,0.30244374]
[1748985016149,1.12750214,661.48,661.28,0.30244374]
[1748985016448,1.01801738,661.47,661.28,0.30244374]
[1748985016648,1.01801738,661.46,661.28,0.30244374]
[1748985016848,1.01801738,661.45,661.28,0.30244374]
[1748985017049,1.01801738,661.44,661.28,0.30244374]
[1748985017267,3.75129473,662.12,661.28,0.30244374]
[1748985017268,1.01801738,661.43,661.28,0.30244374]
[1748985017555,1.01801738,661.42,661.28,0.30244374]
[1748985017746,1.01801738,661.41,661.28,0.30244374]
[1748985017949,1.01801738,661.4,661.28,0.30244374]
[1748985018146,1.01801738,661.39,661.28,0.30244374]
[1748985018451,1.01801738,661.38,661.28,0.30244374]
[1748985018651,1.01801738,661.37,661.28,0.30244374]
[1748985018851,1.01801738,661.36,661.28,0.30244374]
[1748985019051,1.01801738,661.35,661.28,0.30244374]
[1748985019251,1.01801738,661.34,661.28,0.30244374]
[1748985019445,1.01801738,661.33,661.28,0.30244374]
[1748985019649,1.01801738,661.32,661.28,0.30244374]
[1748985019848,1.01801738,661.31,661.28,0.30244374]
[1748985020049,1.01834796,661.3,661.28,0.30244374]
[1748985020246,1.01834796,661.29,661.28,0.30244374]
[1748985023755,1.50910513,661.57,661.28,0.30244374]
[1748985023956,1.12768524,661.42,661.28,0.30244374]
[1748985024255,1.01881534,661.41,661.28,0.30244374]
[1748985024559,1.01881534,661.4,661.28,0.30244374]
[1748985024748,1.01881534,661.39,661.28,0.30244374]
[1748985024949,1.01881534,661.38,661.28,0.30244374]
[1748985025151,1.01881534,661.37,661.28,0.30244374]
[1748985025351,1.01881534,661.36,661.28,0.30244374]
[1748985025547,1.01881534,661.35,661.28,0.30244374]
[1748985025751,1.01881534,661.34,661.28,0.30244374]
[1748985025952,3.75129473,662.34,661.28,0.30244374]
[1748985025953,1.01881534,661.33,661.28,0.30244374]
[1748985026151,1.01881534,661.32,661.28,0.30244374]
[1748985026350,1.01881534,661.31,661.28,0.30244374]
[1748985026559,1.12768524,661.42,661.28,0.30244374]
[1748985026560,1.01881534,661.3,661.28,0.30244374]
[1748985026756,1.01881534,661.29,661.28,0.30244374]
[1748985030957,1.01881534,661.29,660.57,0.26308429]
[1748985031159,1.01881534,661.28,660.57,0.26308429]
[1748985031359,1.01881534,661.27,660.57,0.26308429]
[1748985031559,1.50910513,661.47,660.57,0.26308429]
[1748985031760,1.12719151,661.32,660.57,0.26308429]
[1748985031960,2.14518596,661.31,660.57,0.26308429]
[1748985032262,1.01799445,661.3,660.57,0.26308429]
[1748985032454,1.01799445,661.29,660.57,0.26308429]
[1748985032656,1.01799445,661.28,660.57,0.26308429]
[1748985032958,1.01799445,661.27,660.57,0.26308429]
[1748985033160,1.01799445,661.26,660.57,0.26308429]
[1748985033395,1.01799445,661.25,660.57,0.26308429]
[1748985033670,1.12719151,661.23,660.57,0.26308429]
[1748985034008,1.01799445,661.22,660.47,0.48174364]
[1748985034014,1.01799445,661.22,659.84,3.75812649]
[1748985034015,1.01799445,661.21,660.45,0.48174364]
[1748985034299,1.01799445,661.2,660.49,0.26331719]
[1748985034418,1.01799445,661.19,660.49,0.26331719]
[1748985034568,1.01673983,661.18,660.49,0.26331719]
[1748985034771,1.01673983,661.17,660.49,0.26331719]
[1748985034955,1.01673983,661.16,660.49,0.26331719]
[1748985035158,1.01673983,661.15,660.49,0.26331719]
[1748985035353,1.50910513,661.32,660.49,0.26331719]
[1748985035558,3.75129473,661.92,660.49,0.26331719]
[1748985035559,1.1258491,661.22,660.49,0.26331719]
[1748985035755,1.01637339,661.21,660.49,0.26331719]
[1748985035955,1.01637339,661.2,660.49,0.26331719]
[1748985036156,1.01637339,661.19,660.49,0.26331719]
[1748985036362,1.01637339,661.18,660.49,0.26331719]
[1748985036658,1.01637339,661.17,660.49,0.26331719]
[1748985036960,1.01637339,661.16,660.49,0.26331719]
[1748985037155,1.01637339,661.15,660.49,0.26331719]
[1748985037355,1.01637339,661.14,660.49,0.26331719]
[1748985037559,1.01637339,661.13,660.49,0.26331719]
[1748985037755,1.01637339,661.12,660.49,0.26331719]
[1748985037958,1.01637339,661.11,660.5,0.3028009]
[1748985038258,1.01637339,661.1,660.5,0.3028009]
[1748985038461,1.01637339,661.09,660.5,0.3028009]
[1748985038657,1.01637339,661.08,660.5,0.3028009]
[1748985038856,1.01637339,661.07,660.5,0.3028009]
[1748985039057,1.01637339,661.06,660.5,0.3028009]
[1748985039360,1.01455789,661.05,660.5,0.3028009]
[1748985039559,1.01455789,661.04,660.5,0.3028009]
[1748985039763,1.01455789,661.03,660.5,0.3028009]
[1748985039962,1.12467543,661.24,660.5,0.3028009]
[1748985040158,1.01453811,661.23,660.5,0.3028009]
[1748985040362,1.01453811,661.22,660.5,0.3028009]
[1748985040560,1.01453811,661.21,660.5,0.3028009]
[1748985040760,1.01453811,661.2,660.5,0.3028009]
[1748985040960,1.01453811,661.19,660.5,0.3028009]
[1748985041158,1.01453811,661.18,660.5,0.3028009]
[1748985041359,1.01453811,661.17,660.5,0.3028009]
[1748985041559,1.01453811,661.16,660.5,0.3028009]
[1748985041762,1.01453811,661.15,660.5,0.3028009]
[1748985041958,1.01453811,661.14,660.5,0.3028009]
[1748985042159,1.01453811,661.13,660.5,0.3028009]
[1748985042359,1.01453811,661.12,660.5,0.3028009]
[1748985042560,1.01453811,661.11,660.5,0.3028009]
[1748985042761,1.01453811,661.1,660.5,0.3028009]
[1748985042959,1.01453811,661.09,660.5,0.3028009]
[1748985043271,1.01453811,661.08,660.5,0.3028009]
[1748985043565,1.01375016,661.07,660.5,0.78454454]
[1748985043760,1.01375016,661.06,660.5,0.78454454]
[1748985044065,1.01375016,661.05,660.5,0.78454454]
[1748985044269,1.01375016,661.04,660.5,0.78454454]
[1748985044465,1.12393958,661.23,660.5,0.78454454]
[1748985044664,1.01364742,661.22,660.5,0.78454454]
[1748985044865,1.01364742,661.21,660.5,0.78454454]
[1748985045065,1.01364742,661.2,660.5,0.78454454]
[1748985045272,1.01364742,661.19,660.51,0.48174364]
[1748985045471,1.01364742,661.18,660.52,0.30279173]
[1748985045665,1.01364742,661.17,660.52,0.30279173]
[1748985045861,1.01364742,661.16,660.52,0.30279173]
[1748985046095,1.01364742,661.15,660.52,0.30279173]
[1748985046263,1.01364742,661.14,660.52,0.30279173]
[1748985046466,1.01364742,661.13,660.52,0.30279173]
[1748985046666,1.01364742,661.12,660.52,0.30279173]
[1748985046865,1.01364742,661.11,660.52,0.30279173]
[1748985047067,1.01364742,661.1,660.52,0.30279173]
[1748985047384,1.50910513,661.34,660.52,0.30279173]
[1748985047385,1.01364742,661.09,660.52,0.78453537]
[1748985047666,1.01364742,661.08,660.52,0.78453537]
[1748985047867,1.01364742,661.07,660.52,0.78453537]
[1748985048068,1.01364742,661.06,660.52,0.78453537]
[1748985048266,1.01364742,661.05,660.52,0.78453537]
[1748985048466,1.12393958,661.24,660.53,0.48174364]
[1748985048769,1.01344249,661.23,660.54,0.30278257]
[1748985049075,1.01344249,661.22,660.54,0.30278257]
[1748985049268,1.01344249,661.21,660.54,0.30278257]
[1748985049565,1.01344249,661.2,660.54,0.30278257]
[1748985049764,1.01344249,661.19,660.54,0.30278257]
[1748985049962,1.01344249,661.18,660.54,0.30278257]
[1748985050168,1.01344249,661.17,660.54,0.30278257]
[1748985050368,1.01344249,661.16,660.54,0.78452621]
[1748985050569,1.01344249,661.15,660.54,0.78452621]
[1748985050777,1.01344249,661.14,660.54,0.78452621]
[1748985050966,1.01344249,661.13,660.54,0.78452621]
[1748985051166,1.01344249,661.12,660.54,0.78452621]
[1748985051374,1.01357523,661.11,660.55,0.48174364]
[1748985051567,1.01357523,661.1,660.56,0.3027734]
[1748985051764,1.1235263,661.24,660.56,0.3027734]
[1748985051765,1.01357523,661.09,660.56,0.3027734]
[1748985051968,1.01357523,661.08,660.56,0.3027734]
[1748985052169,1.1235263,661.24,660.56,0.3027734]
[1748985052170,1.01357523,661.07,660.56,0.3027734]
[1748985052367,1.01357523,661.06,660.56,0.3027734]
[1748985052567,1.01357523,661.05,660.56,0.3027734]
[1748985052766,1.01357523,661.04,660.56,0.3027734]
[1748985052970,1.1235263,661.24,660.56,0.3027734]
[1748985053168,1.50910513,661.35,660.56,0.3027734]
[1748985053371,1.12353673,661.24,660.56,0.3027734]
[1748985053568,1.01362303,661.23,660.56,0.78451704]
[1748985053771,1.01362303,661.22,660.56,0.78451704]
[1748985053969,1.01362303,661.21,660.56,0.78451704]
[1748985054169,1.01362303,661.2,660.56,0.78451704]
[1748985054403,1.01362303,661.19,660.58,0.48174364]
[1748985054671,1.01362303,661.18,660.59,0.30275965]
[1748985054870,1.01362303,661.17,660.59,0.30275965]
[1748985055075,1.01362303,661.16,660.59,0.30275965]
[1748985055272,1.50910513,661.35,660.59,0.30275965]
[1748985055481,1.12359664,661.24,660.6,0.48174364]
[1748985055681,1.01359069,661.23,660.61,0.30275048]
[1748985055872,1.01359069,661.22,660.61,0.30275048]
[1748985056070,1.01359069,661.21,660.61,0.30275048]
[1748985056276,1.01359069,661.2,660.62,0.48174364]
[1748985056581,1.01359069,661.19,660.63,0.30274132]
[1748985056779,1.01359069,661.18,660.63,0.30274132]
[1748985057078,1.01359069,661.17,660.63,0.30274132]
[1748985057273,1.01359069,661.16,660.64,0.48174364]
[1748985057578,1.01359069,661.15,660.65,0.30273215]
[1748985057777,1.01359069,661.14,660.65,0.30273215]
[1748985057977,1.01359069,661.13,660.65,0.30273215]
[1748985058180,1.12359664,661.23,660.65,0.30273215]
[1748985058181,1.01359069,661.12,660.65,0.30273215]
[1748985058379,1.01359069,661.11,660.65,0.78447579]
[1748985058674,1.01359069,661.1,660.65,0.30273215]
[1748985058879,1.01384374,661.09,660.65,0.30273215]
[1748985059079,1.50910513,661.34,660.65,0.30273215]
[1748985059080,1.01384374,661.08,660.65,0.30273215]
[1748985059281,1.50910513,661.34,660.65,0.30273215]
[1748985059584,1.12389696,661.25,660.65,0.30273215]
[1748985059786,1.0138429,661.24,660.65,0.30273215]
[1748985059976,1.0138429,661.23,660.65,0.30273215]
[1748985060289,1.0138429,661.22,660.65,0.30273215]
[1748985060481,1.0138429,661.21,660.65,0.30273215]
[1748985060674,1.0138429,661.2,660.65,0.30273215]
[1748985060877,1.0138429,661.19,660.65,0.30273215]
[1748985061074,1.0138429,661.18,660.65,0.30273215]
[1748985061280,1.0138429,661.17,660.65,0.30273215]
[1748985061483,1.12389696,661.24,660.65,0.30273215]
[1748985061484,1.0138429,661.16,660.65,0.30273215]
[1748985061681,1.0138429,661.15,660.65,0.30273215]
[1748985061883,1.01399471,661.14,660.65,0.30273215]
[1748985062082,1.01399471,661.13,660.65,0.30273215]
[1748985062283,1.01399471,661.12,660.65,0.30273215]
[1748985062484,1.01399471,661.11,660.65,0.30273215]
[1748985062689,1.50910513,661.36,660.65,0.30273215]
[1748985062902,22.5077684,666.31,660.65,0.30273215]
[1748985063084,0.30190046,662.47,660.65,0.30273215]
[1748985063860,1.01405192,662.46,660.65,0.30273215]
[1748985063868,1.12414338,661.24,660.65,0.30273215]
[1748985063997,1.01405192,661.23,660.65,0.30273215]
[1748985064185,1.01405192,661.22,660.65,0.78344591]
[1748985064485,1.12414338,661.24,660.67,0.48071376]
[1748985064486,1.01405192,661.21,660.67,0.48071376]
[1748985064684,1.01405192,661.2,660.68,0.30271841]
[1748985064884,1.01405192,661.19,660.68,0.30271841]
[1748985065079,1.01405192,661.18,660.68,0.30271841]
[1748985065289,1.01405192,661.17,660.7,0.48071376]
[1748985065490,1.01405192,661.16,660.71,0.30270466]
[1748985065681,1.01405192,661.15,660.71,0.30270466]
[1748985065907,1.49885784,661.35,660.71,0.30270466]
[1748985066083,1.12425529,661.24,660.71,0.30270466]
[1748985066284,1.01540223,661.23,660.72,0.48071376]
[1748985066598,1.01540223,661.22,660.73,0.3026955]
[1748985066789,1.01540223,661.21,660.73,0.3026955]
[1748985066994,3.7471446,661.92,660.73,0.3026955]
[1748985066995,1.01540223,661.2,660.73,0.3026955]
[1748985067255,1.01540223,661.19,660.73,0.3026955]
[1748985067410,1.01540223,661.18,660.73,0.3026955]
[1748985067613,1.01540223,661.17,660.73,0.3026955]
[1748985067788,1.01540223,661.16,660.73,0.3026955]
[1748985068003,1.01540223,661.15,660.73,0.3026955]
[1748985068212,1.01540223,661.14,660.73,0.3026955]
[1748985068385,1.01540223,661.13,660.73,0.3026955]
[1748985068586,1.01540223,661.12,660.73,0.3026955]
[1748985068791,1.01540223,661.11,660.73,0.3026955]
[1748985069036,1.01540223,661.1,660.73,0.3026955]
[1748985069186,1.01540223,661.09,660.73,0.3026955]
[1748985069393,1.01540223,661.08,660.73,0.3026955]
[1748985069693,1.49885784,661.37,660.73,0.3026955]
[1748985069993,1.1241857,661.2,660.73,0.3026955]
[1748985070298,1.0169453,661.19,660.73,0.3026955]
[1748985070491,1.0169453,661.18,660.73,0.3026955]
[1748985070693,1.0169453,661.17,660.73,0.3026955]
[1748985070992,1.0169453,661.16,660.73,0.3026955]
[1748985071206,1.0169453,661.15,660.73,0.3026955]
[1748985071386,1.0169453,661.14,660.73,0.3026955]
[1748985071587,1.0169453,661.13,660.73,0.3026955]
[1748985071787,1.0169453,661.12,660.73,0.3026955]
[1748985072094,1.0169453,661.11,660.73,0.3026955]
[1748985072288,1.0169453,661.1,660.73,0.3026955]
[1748985072488,1.0169453,661.09,660.73,0.3026955]
[1748985072690,1.0169453,661.08,660.73,0.3026955]
[1748985073141,3.7471446,662.19,660.73,0.3026955]
[1748985073142,1.0169453,661.07,660.73,0.3026955]
[1748985073548,1.0169453,661.06,660.73,0.3026955]
[1748985073553,1.0169453,661.05,660.73,0.3026955]
[1748985073600,1.49885784,661.26,660.73,0.3026955]
[1748985073800,1.12423301,661.11,660.73,0.3026955]
[1748985073993,1.0180566,661.1,660.73,0.3026955]
[1748985074197,1.0180566,661.09,660.73,0.3026955]
[1748985074499,1.0180566,661.08,660.73,0.3026955]
[1748985074698,1.0180566,661.07,660.73,0.3026955]
[1748985074896,1.12423301,661.11,660.73,0.3026955]
[1748985074897,1.0180566,661.06,660.73,0.3026955]
[1748985075091,1.0180566,661.05,660.73,0.3026955]
[1748985075293,1.0180566,661.04,660.73,0.3026955]
[1748985075494,1.0180566,661.03,660.73,0.3026955]
[1748985075691,1.0180566,661.02,660.73,0.3026955]
[1748985075891,1.0180566,661.01,660.73,0.3026955]
[1748985076095,1.0180566,661.0,660.73,0.3026955]
[1748985076297,1.0180566,660.99,660.73,0.3026955]
[1748985076502,1.0180566,660.98,660.73,0.3026955]
[1748985076697,1.0180566,660.97,660.73,0.3026955]
[1748985076998,1.0180566,660.96,660.73,0.3026955]
[1748985077198,1.0180566,660.95,660.73,0.3026955]
[1748985077398,1.0180566,660.94,660.73,0.3026955]
[1748985077701,1.0207346,660.93,660.73,0.3026955]
[1748985077895,1.0207346,660.92,660.73,0.3026955]
[1748985078096,1.0207346,660.91,660.73,0.3026955]
[1748985078297,1.0207346,660.9,660.73,0.3026955]
[1748985078501,1.0207346,660.89,660.73,0.3026955]
[1748985078702,1.0207346,660.88,660.73,0.3026955]
[1748985079000,1.0207346,660.87,660.73,0.3026955]
[1748985079202,1.0207346,660.86,660.73,0.3026955]
[1748985079502,1.1244489,661.09,660.73,0.3026955]
[1748985079503,1.0207346,660.85,660.73,0.3026955]
[1748985079702,1.0207346,660.84,660.73,0.3026955]
[1748985079902,1.0207346,660.83,660.73,0.3026955]
[1748985080106,1.1244489,661.09,660.73,0.3026955]
[1748985080306,1.02049227,661.08,660.73,0.3026955]
[1748985080503,1.02049227,661.07,660.73,0.3026955]
[1748985080703,1.02049227,661.06,660.73,0.3026955]
[1748985080902,1.02049227,661.05,660.73,0.3026955]
[1748985081101,1.02049227,661.04,660.73,0.3026955]
[1748985081302,1.02049227,661.03,660.73,0.3026955]
[1748985081605,1.02096534,661.02,660.73,0.3026955]
[1748985081805,1.02096534,661.01,660.73,0.3026955]
[1748985082098,1.02096534,661.0,660.73,0.3026955]
[1748985082296,1.02096534,660.99,660.73,0.3026955]
[1748985082501,1.02096534,660.98,660.73,0.3026955]